[Event "AZE-ch Men 2019"]
[Site "Baku"]
[Date "2019.01.21"]
[Round "6"]
[White "Isgandarov, Shahriyar"]
[Black "Novruzov, Emin"]
[Result "0-1"]
[ECO "B03"]
[WhiteElo "2113"]
[BlackElo "1910"]
[Annotator "NA"]
[PlyCount "76"]
[EventDate "2019.01.16"]
[EventType "swiss"]
[EventCountry "AZE"]
[SourceTitle "playchess.com"]
[Source "ChessBase"]
[SourceQuality "1"]
[TimeControl "40/5400+30:1800+30"]

1. e4 {[%emt 0:10:35]} Nf6 {[%emt 0:07:33]} 2. e5 {[%emt 0:03:51]} Nd5 {[%emt 0:00:04]} 3. c4 {[%emt 0:00:23]} Nb6 {[%emt 0:00:07]} 4. d4 {[%emt 0:01:54]} d6 {[%emt 0:02:09]} 5. exd6 {[%emt 0:00:20]} cxd6 {[%emt 0:00:27]} 6. Nf3 {[%emt 0:00:38]} g6 {[%emt 0:00:55]} 7. Be2 {[%emt 0:01:00] LiveBook: 40 Games} Bg7 {[%emt 0:00:31]} 8. O-O {[%emt 0:01:03]} O-O {[%emt 0:00:07]} 9. b3 {[%emt 0:03:26]} Nc6 {[%emt 0:04:43] B04: Alekhine's Defence: 4 Nf3} 10. Bb2 {[%emt 0:00:16]} d5 {[%emt 0:00:35]} (10... Bg4 11. Nbd2 d5 12. c5 Nd7 13. Rc1 b6 14. b4 bxc5 15. bxc5 Rb8 16. Bc3 Qc7 17. Qa4 Nf6 18. Rfe1 Bxf3 19. Bxf3 {0-1 (28) Hansen,M (2306)-Rozentalis,E (2611) Odense 2013}) 11. c5 {[%emt 0:05:15]} Nd7 {[%emt 0:00:15]} 12. b4 $146 {[%emt 0:04:29]} ({Predecessor:} 12. Nc3 $11 b6 13. cxb6 Nxb6 14. h3 a5 15. Bb5 Bd7 16. Bxc6 Bxc6 {½-½ (75) Abarca Gonzalez,N (2170)-Michel Yunis,C (2340) Santiago de Chile 2012}) 12... Nxb4 {[%emt 0:07:29]} 13. Qb3 {[%emt 0:00:42]} a5 {[%emt 0:00:36]} 14. a3 {[%emt 0:01:38]} Na6 {[%emt 0:00:17]} (14... Nc6 $17 15. Nbd2 e5 16. Nxe5 Ndxe5 17. dxe5 Nxe5) 15. Bxa6 {[%emt 0:02:28]} Rxa6 {[%emt 0:00:30]} 16. Qxd5 {[%emt 0:00:53]} Ne5 {[%emt 0:05:42]} 17. Qe4 {[%emt 0:10:36]} Nxf3+ {[%emt 0:03:43]} 18. Qxf3 {[%emt 0:00:31]} Bxd4 {[%emt 0:02:29]} 19. Rd1 {[%emt 0:01:28]} e5 {[%emt 0:00:22]} 20. Bxd4 {[%emt 0:02:13]} exd4 {[%emt 0:00:30]} 21. Nc3 {[%emt 0:03:28]} Rc6 {[%emt 0:12:34]} 22. Nd5 {[%emt 0:06:23]} Bg4 {[%emt 0:15:53]} 23. Qe4 {[%emt 0:07:46]} Re8 {[%emt 0:02:57]} 24. Qxd4 {[%emt 0:02:16]} Bxd1 {[%emt 0:01:29]} 25. Rxd1 {[%emt 0:00:09]} Qg5 {[%emt 0:08:09]} 26. f4 {[%emt 0:09:09]} Qg4 {[%emt 0:01:15]} 27. h3 {[%emt 0:01:04]} Qe6 {[%emt 0:04:35]} 28. Kh2 {[%emt 0:00:31]} f6 {[%emt 0:01:40]} 29. Rd3 {[%emt 0:02:52]} Kg7 {[%emt 0:02:19]} 30. Qb2 {[%emt 0:02:25]} (30. Qa4 $142) 30... Qf7 {[%emt 0:03:11]} 31. g4 {[%emt 0:05:34]} Rd8 {[%emt 0:01:30]} 32. Qd4 {[%emt 0:03:11]} Rc7 {[%emt 0:03:23]} 33. g5 {[%emt 0:05:33]} Rcd7 {[%emt 0:00:28]} 34. gxf6+ {[%emt 0:00:05]} Kh8 {[%emt 0:00:35]} 35. Qe5 {[%emt 0:00:58]} Rxd5 {[%emt 0:00:45]} 36. Rxd5 {[%emt 0:00:25]} Qxd5 {[%emt 0:00:29]} 37. Qe7 {[%emt 0:00:26]} Qa2+ {[%emt 0:04:37]} 38. Kg3 {[%emt 0:00:03]} Rd3+ {[%emt 0:00:10]} 0-1

[Event "AZE-ch Men 2019"]
[Site "Baku"]
[Date "2019.01.21"]
[Round "6"]
[White "Guliyev, Gasan"]
[Black "Jafarli, Babak"]
[Result "0-1"]
[ECO "A43"]
[WhiteElo "1997"]
[BlackElo "2128"]
[Annotator "NA"]
[PlyCount "56"]
[EventDate "2019.01.16"]
[EventType "swiss"]
[EventCountry "AZE"]
[SourceTitle "playchess.com"]
[Source "ChessBase"]
[SourceQuality "1"]
[TimeControl "40/5400+30:1800+30"]

1. d4 Nf6 {[%emt 0:10:21]} 2. Nf3 {[%emt 0:07:21]} c5 {[%emt 0:00:36]} 3. d5 {[%emt 0:01:22]} b5 {[%emt 0:00:18]} 4. a4 {[%emt 0:10:44]} Bb7 {[%emt 0:02:45]} 5. e4 {[%emt 0:07:23]} Nxe4 {[%emt 0:05:11]} 6. axb5 {[%emt 0:00:13]} Nf6 {[%emt 0:00:04]} 7. Nc3 {[%emt 0:17:40]} d6 {[%emt 0:00:40]} 8. Bc4 {[%emt 0:01:19]} g6 {[%emt 0:00:41]} 9. b3 {[%emt 0:17:51]} Bg7 {[%emt 0:00:47]} 10. Bb2 {[%emt 0:04:32]} O-O {[%emt 0:00:42]} 11. O-O {[%emt 0:00:11]} Nbd7 {[%emt 0:00:12]} 12. Re1 {[%emt 0:00:43]} Nb6 {[%emt 0:00:24]} 13. Ra2 $11 {[%emt 0:05:18]} Re8 {[%emt 0:06:13]} 14. h3 {[%emt 0:01:10]} Nfd7 {[%emt 0:02:37]} 15. Qd3 {[%emt 0:10:04]} Nf6 {[%emt 0:06:55]} 16. Qd2 {[%emt 0:01:04]} Qd7 {[%emt 0:05:24]} 17. Rea1 {[%emt 0:01:56]} Bc8 {[%emt 0:00:57]} 18. Na4 {[%emt 0:03:38]} Rb8 {[%emt 0:00:18]} 19. Nc3 {[%emt 0:01:08]} Rb7 {[%emt 0:00:27]} 20. Ng5 {[%emt 0:00:35]} Qc7 {[%emt 0:03:09]} 21. Nge4 {[%emt 0:01:18]} Bd7 {[%emt 0:06:42]} 22. Nxf6+ {[%emt 0:00:28]} exf6 23. Na4 {[%emt 0:01:36]} Na8 {[%emt 0:01:35]} 24. b4 {[%emt 0:01:37]} cxb4 {[%emt 0:00:56]} 25. Qxb4 {[%emt 0:00:37]} Re4 {[%emt 0:00:05]} 26. b6 {[%emt 0:02:24]} Rxc4 {[%emt 0:01:44]} 27. Qe1 {[%emt 0:00:27]} Nxb6 {[%emt 0:00:23]} 28. Nxb6 {[%emt 0:00:12]} Qxb6 {[%emt 0:00:07]} 0-1

[Event "AZE-ch Men 2019"]
[Site "Baku"]
[Date "2019.01.22"]
[Round "7"]
[White "Gadimbayli, Abdulla"]
[Black "Bashirli, Nail"]
[Result "1-0"]
[ECO "B48"]
[WhiteElo "2409"]
[BlackElo "2324"]
[Annotator "NA"]
[PlyCount "60"]
[EventDate "2019.01.16"]
[EventType "swiss"]
[EventCountry "AZE"]
[SourceTitle "playchess.com"]
[Source "ChessBase"]
[SourceQuality "1"]
[TimeControl "40/5400+30:1800+30"]

1. e4 {[%emt 0:06:30]} c5 {[%emt 0:03:16]} 2. Nf3 {[%emt 0:00:10]} e6 {[%emt 0:00:19]} 3. d4 {[%emt 0:00:21]} cxd4 {[%emt 0:00:04]} 4. Nxd4 {[%emt 0:00:04]} Nc6 {[%emt 0:00:02]} 5. Nc3 {[%emt 0:01:24]} Qc7 {[%emt 0:00:04]} 6. Be3 {[%emt 0:10:33]} a6 {[%emt 0:00:16]} 7. Nxc6 {[%emt 0:11:05]} bxc6 {[%emt 0:03:42] B48: Sicilian: Taimanov: 5 Nc3 Qc7 6 Be3 a6 without Be2} 8. g3 {[%emt 0:00:04]} Nf6 {[%emt 0:06:57]} 9. Bg2 {[%emt 0:01:50]} Be7 {[%emt 0:01:46]} 10. O-O {[%emt 0:01:17]} O-O {[%emt 0:00:02]} 11. Na4 {[%emt 0:04:14] LiveBook: 5 Games} d5 {[%emt 0:05:01]} 12. Bb6 $146 {[%emt 0:20:02]} ({Predecessor:} 12. exd5 cxd5 13. c4 Bb7 14. Nb6 Rad8 15. cxd5 Nxd5 16. Nxd5 Bxd5 17. Bxd5 Rxd5 {½-½ (39) Atlas,V (2480)-Ribli,Z (2585) Austria 2006}) 12... Qb8 {[%emt 0:09:08]} 13. Re1 {[%emt 0:11:17]} Nxe4 {[%emt 0:09:26]} 14. Bxe4 {[%emt 0:00:56]} dxe4 {[%emt 0:06:05]} 15. Qd4 {[%emt 0:00:05]} c5 {[%emt 0:11:14]} 16. Bxc5 {[%emt 0:02:29]} Rd8 {[%emt 0:05:22]} 17. Qxe4 {[%emt 0:05:41]} Bb7 {[%emt 0:03:32]} 18. Qe3 {[%emt 0:00:02]} Bf6 {[%emt 0:08:38]} 19. Nb6 {[%emt 0:02:33]} Qc7 {[%emt 0:00:55]} 20. Nxa8 {[%emt 0:02:55]} Qc6 {[%emt 0:00:18]} 21. f3 {[%emt 0:01:12]} Rd5 {[%emt 0:00:13]} 22. Ba7 {[%emt 0:01:17]} h5 {[%emt 0:12:40]} 23. Rad1 {[%emt 0:04:56]} Rf5 {[%emt 0:01:22]} 24. Qe4 {[%emt 0:03:19]} Qc8 {[%emt 0:05:28]} 25. Nb6 {[%emt 0:00:24]} Qc5+ {[%emt 0:00:36]} 26. Qe3 {[%emt 0:00:02]} Qc6 {[%emt 0:01:34]} 27. Rf1 {[%emt 0:02:39]} Bg5 {[%emt 0:02:42]} 28. Qd3 {[%emt 0:03:27]} Qc7 $18 {[%emt 0:02:33]} 29. Na4 {[%emt 0:02:19]} h4 {[%emt 0:00:29]} 30. Be3 {[%emt 0:01:09]} hxg3 1-0

[Event "AZE-ch Men 2019"]
[Site "Baku"]
[Date "2019.01.22"]
[Round "7"]
[White "Shahaliyev, Ismayil"]
[Black "Davidov, Samir"]
[Result "1-0"]
[ECO "B07"]
[WhiteElo "2389"]
[BlackElo "2344"]
[Annotator "NA"]
[PlyCount "147"]
[EventDate "2019.01.16"]
[EventType "swiss"]
[EventCountry "AZE"]
[SourceTitle "playchess.com"]
[Source "ChessBase"]
[SourceQuality "1"]
[TimeControl "40/5400+30:1800+30"]

1. e4 {[%emt 0:04:38]} d6 {[%emt 0:08:13]} 2. d4 {[%emt 0:00:07]} Nf6 {[%emt 0:00:06]} 3. Nc3 {[%emt 0:00:09]} Nbd7 {[%emt 0:00:10]} 4. f4 {[%emt 0:00:07]} e5 {[%emt 0:00:14]} 5. Nf3 {[%emt 0:00:04]} c6 {[%emt 0:00:11]} 6. dxe5 {[%emt 0:00:25]} dxe5 {[%emt 0:00:06]} 7. fxe5 {[%emt 0:00:04]} Ng4 {[%emt 0:00:20] B07: Pirc Defence: Miscellaneous Systems} 8. e6 {[%emt 0:00:04]} fxe6 {[%emt 0:00:09]} 9. Ng5 {[%emt 0:00:04]} Nde5 {[%emt 0:03:32]} 10. Qxd8+ {[%emt 0:00:13]} Kxd8 {[%emt 0:00:05]} 11. h3 {[%emt 0:00:05]} Nh6 {[%emt 0:00:06]} 12. Bf4 {[%emt 0:00:03]} Nhf7 {[%emt 0:00:31]} 13. Be2 {[%emt 0:00:07]} (13. O-O-O+ Ke7 14. h4 g6 15. Nxf7 Nxf7 {1-0 (36) Filipenko,A (2286)-Yudin,S (2517) Samara 2017}) 13... Be7 {[%emt 0:01:59]} 14. O-O-O+ {[%emt 0:02:53]} Ke8 {[%emt 0:00:05]} 15. Nxf7 {[%emt 0:00:11]} Nxf7 {[%emt 0:00:05]} 16. e5 $146 {[%emt 0:00:33]} Bd7 {[%emt 0:01:12]} 17. Bh5 {[%emt 0:03:39]} g6 {[%emt 0:01:02]} 18. Be2 {[%emt 0:05:35]} Rd8 {[%emt 0:05:32]} 19. Ne4 {[%emt 0:03:55]} Kf8 {[%emt 0:00:32]} 20. Nd6 {[%emt 0:09:50]} Bxd6 {[%emt 0:05:30]} 21. exd6 {[%emt 0:00:29]} e5 {[%emt 0:11:06]} 22. Be3 {[%emt 0:08:49]} Be6 {[%emt 0:00:05]} 23. Bxa7 {[%emt 0:01:39]} Kg7 {[%emt 0:00:05]} 24. Bc5 {[%emt 0:05:16]} Rd7 {[%emt 0:00:11]} 25. Rd2 {[%emt 0:02:36]} Ra8 {[%emt 0:06:31]} 26. a3 {[%emt 0:03:54]} Ng5 {[%emt 0:06:41]} 27. Bd3 {[%emt 0:02:34]} Ra5 {[%emt 0:05:34]} 28. Bb4 {[%emt 0:01:05]} Rd5 {[%emt 0:11:26]} 29. c4 {[%emt 0:06:53]} Rxd3 {[%emt 0:06:45]} 30. Rxd3 {[%emt 0:00:11]} Bxc4 {[%emt 0:00:16]} 31. Re3 {[%emt 0:00:29]} Nf7 {[%emt 0:00:05]} 32. Bc3 {[%emt 0:01:36]} Kf6 {[%emt 0:00:05]} 33. Rhe1 {[%emt 0:00:39]} Ke6 {[%emt 0:00:06]} 34. Bxe5 {[%emt 0:01:40]} Nxe5 {[%emt 0:00:11]} 35. Rxe5+ {[%emt 0:00:06]} Kxd6 {[%emt 0:00:02]} 36. Rd1+ {[%emt 0:03:04]} Bd5 {[%emt 0:00:14]} 37. Re2 {[%emt 0:00:07]} Rf7 {[%emt 0:00:19]} 38. Kc2 {[%emt 0:01:27]} Kc5 {[%emt 0:00:30]} 39. Rdd2 {[%emt 0:01:48]} b5 {[%emt 0:04:51]} 40. Rf2 {[%emt 0:00:00]} Ra7 {[%emt 0:00:00]} 41. Rde2 {[%emt 0:05:02]} b4 {[%emt 0:00:47]} 42. Re3 {[%emt 0:00:33]} bxa3 {[%emt 0:01:40]} 43. bxa3 {[%emt 0:00:54]} Kd4 {[%emt 0:01:51]} 44. Rd3+ {[%emt 0:00:36]} Ke5 {[%emt 0:00:37]} 45. Re3+ {[%emt 0:03:54]} Kd4 {[%emt 0:00:16]} 46. Rd3+ {[%emt 0:00:02]} Ke5 {[%emt 0:00:06]} 47. Re2+ {[%emt 0:00:07]} Kd6 {[%emt 0:00:05]} 48. Rg3 {[%emt 0:00:09]} Kc5 {[%emt 0:00:15]} 49. Rf2 {[%emt 0:01:05]} Kd6 {[%emt 0:03:54]} 50. Rf4 {[%emt 0:01:15]} Re7 {[%emt 0:00:29]} 51. Kd2 {[%emt 0:00:29]} Rb7 {[%emt 0:01:06]} 52. Rb4 {[%emt 0:07:15]} Re7 {[%emt 0:02:27]} 53. Rgg4 {[%emt 0:02:06]} Kc5 {[%emt 0:01:37]} 54. Rb2 $18 {[%emt 0:04:03]} Kd6 {[%emt 0:04:27]} 55. h4 {[%emt 0:04:31]} Ra7 {[%emt 0:02:06]} 56. a4 {[%emt 0:00:40]} Kc5 {[%emt 0:06:37]} 57. Rc2+ {[%emt 0:01:56]} Kb6 {[%emt 0:00:18]} 58. g3 {[%emt 0:01:01]} c5 {[%emt 0:04:51]} 59. Rb2+ {[%emt 0:03:59]} Kc6 {[%emt 0:00:08]} 60. Rf4 {[%emt 0:00:09]} Be6 {[%emt 0:07:34]} 61. Kc3 {[%emt 0:02:10]} Bf5 {[%emt 0:03:05]} 62. g4 {[%emt 0:03:27]} Bc8 {[%emt 0:01:07]} 63. Rb8 {[%emt 0:07:12]} Be6 {[%emt 0:03:43]} 64. Re8 {[%emt 0:02:19]} Kd5 {[%emt 0:00:47]} 65. g5 {[%emt 0:00:37]} Bh3 {[%emt 0:01:55]} 66. Re3 {[%emt 0:01:35]} Bc8 {[%emt 0:00:27]} 67. Re1 {[%emt 0:02:47]} Be6 {[%emt 0:01:19]} 68. Ra1 {[%emt 0:01:24]} Bf5 {[%emt 0:02:11]} 69. a5 {[%emt 0:01:45]} Ra6 {[%emt 0:00:11]} 70. Rf2 {[%emt 0:00:36]} c4 {[%emt 0:04:24]} 71. Rf4 {[%emt 0:00:58]} Ke5 {[%emt 0:03:37]} 72. Rxc4 {[%emt 0:00:20]} Be6 {[%emt 0:00:17]} 73. Rb4 {[%emt 0:02:37]} Rc6+ {[%emt 0:00:18]} 74. Kb2 {[%emt 0:00:34]} 1-0

[Event "AZE-ch Men 2019"]
[Site "Baku"]
[Date "2019.01.22"]
[Round "7"]
[White "Zeynalov, Farid"]
[Black "Guliev, Logman"]
[Result "1/2-1/2"]
[ECO "E16"]
[WhiteElo "2344"]
[BlackElo "2322"]
[Annotator "NA"]
[PlyCount "173"]
[EventDate "2019.01.16"]
[EventType "swiss"]
[EventCountry "AZE"]
[SourceTitle "playchess.com"]
[Source "ChessBase"]
[SourceQuality "1"]
[TimeControl "40/5400+30:1800+30"]

1. d4 Nf6 {[%emt 0:03:47]} 2. c4 {[%emt 0:00:00]} e6 {[%emt 0:00:09]} 3. Nf3 {[%emt 0:00:16]} Bb4+ {[%emt 0:01:07]} 4. Bd2 {[%emt 0:02:38]} Qe7 {[%emt 0:00:14]} 5. g3 {[%emt 0:01:37]} b6 {[%emt 0:00:50]} 6. Bg2 {[%emt 0:00:44]} Bb7 {[%emt 0:00:14]} 7. O-O {[%emt 0:00:08]} Bxd2 {[%emt 0:00:04]} 8. Qxd2 {[%emt 0:00:31]} O-O {[%emt 0:00:28]} 9. Nc3 {[%emt 0:00:19]} Ne4 {[%emt 0:01:35]} 10. Nxe4 {[%emt 0:05:32]} Bxe4 {[%emt 0:01:02]} 11. Qf4 {[%emt 0:00:20] E16: Queen's Indian: 4 g3 Bb7 5 Bg2 Bb4+} Bxf3 {[%emt 0:04:06]} 12. Bxf3 {[%emt 0:00:15]} c6 {[%emt 0:00:05]} 13. a3 {[%emt 0:06:35]} Na6 $146 {[%emt 0:10:36]} ({Predecessor:} 13... a5 14. Qc7 Qd8 15. Qd6 Na6 16. Rfd1 Nc7 17. Rac1 Ne8 18. Qf4 Rc8 {1-0 (66) Bermejo Collado,J (2313)-Gonzalez Rodriguez,J (2431) Alcala de Henares 2006}) 14. d5 {[%emt 0:05:32]} e5 {[%emt 0:15:22]} 15. Qe3 {[%emt 0:01:25]} Qf6 {[%emt 0:01:34]} 16. b4 {[%emt 0:02:15]} Rad8 {[%emt 0:02:16]} 17. Qb3 {[%emt 0:14:30]} Nc7 {[%emt 0:12:52]} 18. Qa4 {[%emt 0:02:43]} cxd5 {[%emt 0:04:41]} 19. cxd5 {[%emt 0:04:00]} Qd6 {[%emt 0:01:23]} 20. Rac1 {[%emt 0:04:36]} a6 {[%emt 0:02:32]} 21. e3 {[%emt 0:03:03]} f5 $14 {[%emt 0:00:28]} 22. Qc2 {[%emt 0:05:54]} Ne8 {[%emt 0:03:47]} 23. Qc4 {[%emt 0:16:38]} e4 {[%emt 0:05:20]} 24. Be2 {[%emt 0:01:09]} b5 {[%emt 0:04:51]} 25. Qd4 {[%emt 0:02:47]} Nf6 {[%emt 0:02:32]} 26. Rfd1 {[%emt 0:03:18]} h5 {[%emt 0:00:53]} 27. h4 {[%emt 0:04:16]} Ng4 {[%emt 0:02:48]} 28. Bxg4 {[%emt 0:03:26]} hxg4 {[%emt 0:01:23]} 29. Qc5 {[%emt 0:00:11]} Rf6 {[%emt 0:03:12]} 30. Rc3 {[%emt 0:01:44]} Qe5 {[%emt 0:03:05]} 31. d6 {[%emt 0:02:35]} Qxc5 {[%emt 0:04:03]} 32. Rxc5 {[%emt 0:00:07]} Rb8 {[%emt 0:00:34]} 33. Rc7 {[%emt 0:01:06]} Rf7 {[%emt 0:00:03]} 34. Rd5 {[%emt 0:01:31]} Rb6 {[%emt 0:00:41]} 35. Kf1 {[%emt 0:02:30]} g6 {[%emt 0:00:23]} 36. Ke2 {[%emt 0:00:17]} Kg7 {[%emt 0:00:14]} 37. Kd2 {[%emt 0:00:36]} Kf6 {[%emt 0:01:39]} 38. Rc8 {[%emt 0:01:56]} Ke6 {[%emt 0:00:17]} 39. Rd4 {[%emt 0:00:03]} Rc6 {[%emt 0:07:05]} 40. Rg8 {[%emt 0:00:00]} Kf6 {[%emt 0:00:00]} 41. Re8 {[%emt 0:03:57]} Rg7 {[%emt 0:04:36]} 42. Rd5 {[%emt 0:01:54]} Kf7 {[%emt 0:03:53]} 43. Ree5 {[%emt 0:01:50]} Kf6 {[%emt 0:05:14]} 44. h5 {[%emt 0:03:37]} Rf7 {[%emt 0:00:11]} 45. hxg6 {[%emt 0:02:54]} Kxg6 {[%emt 0:00:03]} 46. Re7 {[%emt 0:00:16]} Kf6 {[%emt 0:10:05]} 47. Rxf5+ {[%emt 0:01:50]} Kxf5 {[%emt 0:00:01]} 48. Rxf7+ {[%emt 0:00:06]} Ke6 {[%emt 0:00:57]} 49. Re7+ {[%emt 0:10:54]} Kd5 {[%emt 0:00:04]} 50. Rg7 {[%emt 0:00:28]} Rxd6 {[%emt 0:00:37]} 51. Rxg4 {[%emt 0:00:28]} Ke5+ {[%emt 0:00:08]} 52. Ke2 {[%emt 0:01:04]} Rc6 {[%emt 0:00:50]} 53. Rg5+ {[%emt 0:03:51]} Kf6 {[%emt 0:00:02]} 54. Rd5 {[%emt 0:00:08]} Ke6 {[%emt 0:00:03]} 55. Rd2 {[%emt 0:02:27]} Rc3 {[%emt 0:00:40]} 56. Ra2 {[%emt 0:00:02]} d5 {[%emt 0:02:27]} 57. Kf1 {[%emt 0:02:37]} Ke5 {[%emt 0:00:13]} 58. Kg2 {[%emt 0:00:02]} d4 {[%emt 0:00:32]} 59. exd4+ {[%emt 0:00:04]} Kxd4 {[%emt 0:00:02]} 60. Kh3 {[%emt 0:00:36]} Kc4 {[%emt 0:02:31]} 61. Re2 {[%emt 0:02:33]} Kd4 {[%emt 0:00:14]} 62. Ra2 {[%emt 0:00:11]} Kc4 {[%emt 0:00:34]} 63. Kg4 {[%emt 0:01:26]} Kb3 {[%emt 0:01:01]} 64. Re2 {[%emt 0:00:04]} Kxa3 {[%emt 0:00:09]} 65. Rxe4 {[%emt 0:00:07]} Rc4 {[%emt 0:00:09]} 66. Kf5 Kxb4 {[%emt 0:00:55]} 67. g4 {[%emt 0:01:18]} Rxe4 {[%emt 0:06:10]} 68. Kxe4 {[%emt 0:00:05]} Kc3 {[%emt 0:00:57]} 69. g5 {[%emt 0:00:41]} b4 {[%emt 0:00:03]} 70. g6 {[%emt 0:00:04]} b3 {[%emt 0:00:04]} 71. g7 {[%emt 0:00:03]} b2 {[%emt 0:00:04]} 72. g8=Q {[%emt 0:00:09]} b1=Q+ {[%emt 0:00:05]} 73. Kf3 {[%emt 0:01:35]} Qf5+ {[%emt 0:00:17]} 74. Kg2 {[%emt 0:00:14]} a5 {[%emt 0:00:09]} 75. Qg7+ {[%emt 0:00:51]} Kc4 {[%emt 0:00:48]} 76. Qc7+ {[%emt 0:01:17]} Kd4 {[%emt 0:00:31]} 77. Qb6+ {[%emt 0:00:26]} Qc5 {[%emt 0:00:22]} 78. Qb2+ {[%emt 0:00:12]} Kd5 {[%emt 0:00:20]} 79. Qa2+ {[%emt 0:01:14]} Kd6 {[%emt 0:00:11]} 80. f3 {[%emt 0:00:28]} Qc3 {[%emt 0:01:12]} 81. Kf2 {[%emt 0:00:45]} Qd4+ {[%emt 0:00:25]} 82. Ke2 {[%emt 0:00:18]} Qe5+ {[%emt 0:01:34]} 83. Kd1 {[%emt 0:00:26]} Qh5 {[%emt 0:00:36]} 84. Qa3+ {[%emt 0:00:09]} Kc6 {[%emt 0:00:27]} 85. Qc3+ {[%emt 0:00:10]} Kb6 {[%emt 0:00:14]} 86. Qb3+ {[%emt 0:00:05]} Ka7 {[%emt 0:00:11]} 87. Qe3+ {[%emt 0:00:09]} 1/2-1/2

[Event "AZE-ch Men 2019"]
[Site "Baku"]
[Date "2019.01.22"]
[Round "7"]
[White "Babazada, Khazar"]
[Black "Jafarli, Babak"]
[Result "0-1"]
[ECO "C60"]
[WhiteElo "2299"]
[BlackElo "2128"]
[Annotator "NA"]
[PlyCount "111"]
[EventDate "2019.01.16"]
[EventType "swiss"]
[EventCountry "AZE"]
[SourceTitle "playchess.com"]
[Source "ChessBase"]
[SourceQuality "1"]
[TimeControl "40/5400+30:1800+30"]

1. e4 {[%emt 0:00:00]} e5 {[%emt 0:22:50]} 2. Nf3 {[%emt 0:00:00]} Nc6 {[%emt 0:00:08]} 3. Bb5 {[%emt 0:00:00]} Nge7 {[%emt 0:00:05]} 4. O-O {[%emt 0:00:14]} Ng6 {[%emt 0:00:01]} 5. c3 {[%emt 0:01:28] C60: Ruy Lopez: Unusual Black 3rd moves and 3...g6} Be7 {[%emt 0:00:07]} (5... a6 6. Ba4 d6 7. d4 Bd7 8. d5 Nb8 9. c4 Be7 10. Nc3 h6 11. g3 O-O 12. Bxd7 Qxd7 13. Kg2 f5 14. exf5 Qxf5 15. Nd2 Bg5 16. Nde4 Bxc1 17. Rxc1 Nd7 {½-½ (66) Leko,P (2735)-Ivanchuk,V (2741) Astrakhan 2010 CBM 137 [Marin,M]}) 6. d4 {[%emt 0:00:13]} d6 {[%emt 0:05:57]} 7. d5 {[%emt 0:07:59]} a6 {[%emt 0:00:49]} 8. Ba4 {[%emt 0:00:11]} b5 {[%emt 0:00:03]} 9. Bc2 {[%emt 0:00:03]} Nb8 {[%emt 0:00:03]} 10. a4 {[%emt 0:00:03]} bxa4 {[%emt 0:00:29]} 11. Bxa4+ {[%emt 0:00:18]} Nd7 {[%emt 0:00:08]} 12. Bc6 $146 {[%emt 0:00:42]} ({Predecessor:} 12. Be3 O-O 13. b4 {0-1 (34) Toth,P-Suer,N Nice 1974}) 12... Rb8 {[%emt 0:00:01]} 13. b4 {[%emt 0:00:05]} O-O {[%emt 0:00:07]} 14. Be3 {[%emt 0:01:08]} Nb6 {[%emt 0:00:21]} 15. Nfd2 {[%emt 0:04:04]} Bg5 {[%emt 0:01:25]} 16. Na3 {[%emt 0:01:48]} f5 {[%emt 0:04:28]} 17. exf5 {[%emt 0:02:31]} Bxf5 {[%emt 0:02:25]} 18. Ndc4 {[%emt 0:00:20]} Bxe3 {[%emt 0:01:38]} 19. fxe3 {[%emt 0:07:48]} Nxc4 {[%emt 0:01:54]} 20. Nxc4 {[%emt 0:00:26]} Qg5 {[%emt 0:00:06]} 21. Qe2 {[%emt 0:04:01]} Nh4 {[%emt 0:00:43]} 22. e4 {[%emt 0:00:10]} Nxg2 $2 {[%emt 0:06:53]} (22... Bh3 $1 $19 {[%cal Rh3g2]} 23. Ne3 Rf4) 23. Rxf5 {[%emt 0:02:01]} Rxf5 {[%emt 0:00:09]} 24. Qxg2 {[%emt 0:00:08]} Qxg2+ {[%emt 0:00:07]} 25. Kxg2 {[%emt 0:00:04]} Rf4 {[%emt 0:00:03]} 26. Rxa6 {[%emt 0:01:19]} Rxe4 {[%emt 0:00:22]} 27. Na3 {[%emt 0:01:52]} Re2+ {[%emt 0:00:54]} 28. Kf3 {[%emt 0:00:09]} Ra2 {[%emt 0:00:01]} 29. Ra5 {[%emt 0:00:25]} Rf8+ {[%emt 0:00:21]} 30. Ke3 {[%emt 0:00:32]} Rxh2 {[%emt 0:00:03]} 31. Kd3 {[%emt 0:01:09]} g5 {[%emt 0:00:22]} 32. Bd7 {[%emt 0:02:11]} h5 {[%emt 0:00:26]} 33. Nb5 {[%emt 0:01:15]} Rf3+ {[%emt 0:01:52]} 34. Kc4 {[%emt 0:00:11]} g4 {[%emt 0:00:24]} 35. Nxc7 {[%emt 0:02:05]} Rf4+ {[%emt 0:03:02]} 36. Kb3 {[%emt 0:00:23]} g3 {[%emt 0:00:34]} 37. Ne6 {[%emt 0:01:27]} g2 {[%emt 0:00:41]} 38. Ra8+ {[%emt 0:00:16]} Kh7 {[%emt 0:00:31]} 39. Ng5+ {[%emt 0:04:09]} Kg7 {[%emt 0:02:54]} 40. Ne6+ {[%emt 0:00:00]} Kf7 {[%emt 0:00:00]} 41. Be8+ {[%emt 0:03:47]} Kf6 {[%emt 0:06:04]} 42. Ra7 {[%emt 0:00:10]} e4 {[%emt 0:00:30]} 43. Rf7+ {[%emt 0:02:49]} Ke5 {[%emt 0:01:23]} 44. Nxf4 {[%emt 0:00:07]} g1=Q {[%emt 0:00:10]} 45. Ng6+ {[%emt 0:00:04]} Kxd5 {[%emt 0:00:11]} 46. Nf4+ {[%emt 0:00:19]} Ke5 {[%emt 0:00:08]} 47. Ng6+ {[%emt 0:00:03]} Qxg6 {[%emt 0:00:09]} 48. Re7+ {[%emt 0:00:03]} Kf6 {[%emt 0:00:05]} 49. Bxg6 {[%emt 0:00:07]} Kxe7 {[%emt 0:00:04]} 50. Bxe4 {[%emt 0:00:03]} h4 {[%emt 0:00:16]} 51. Kc4 {[%emt 0:01:24]} Rd2 {[%emt 0:00:17]} 52. Bf5 {[%emt 0:00:08]} Kd8 {[%emt 0:00:33]} 53. Be6 {[%emt 0:01:09]} Kc7 {[%emt 0:00:07]} 54. Kb5 {[%emt 0:00:05]} Rd3 {[%emt 0:00:04]} 55. Kc4 {[%emt 0:00:09]} Rg3 {[%emt 0:00:17]} 56. Kd4 0-1